bitfinex/quotes_SOLUSD_20220118
["timestamp","ask_amount","ask_price","bid_price","bid_amount"]
[1642546873096,10.6713,140.61,140.55,13.7658]
[1642546873298,10.6713,140.61,140.55,0.25]
[1642546873498,16.6726,140.6,140.55,0.25]
[1642546873898,10.6726,140.6,140.55,0.25]
[1642546875300,10.6726,140.6,140.54,2.595]
[1642546878003,2.845,140.61,140.54,13.2666]
[1642546878204,6.0,140.6,140.54,13.2666]
[1642546878403,6.0,140.61,140.54,13.2666]
[1642546878605,8.845,140.61,140.54,13.2666]
[1642546879407,2.845,140.61,140.54,13.2666]
[1642546879611,2.845,140.61,140.55,0.25]
[1642546879810,24.0948,140.62,140.55,0.25]
[1642546880008,10.6714,140.61,140.55,10.921]
[1642546882111,24.0948,140.62,140.55,10.921]
[1642546882314,34.7653,140.62,140.55,10.921]
[1642546882511,34.7653,140.62,140.55,10.421]
[1642546884416,2.845,140.61,140.55,10.421]
[1642546886215,13.5162,140.61,140.55,10.421]
[1642546886915,10.6712,140.61,140.55,9.921]
[1642546889022,24.0948,140.62,140.55,9.921]
[1642546889222,2.845,140.63,140.56,13.7646]
[1642546889720,2.845,140.63,140.57,10.25]
[1642546889924,2.845,140.63,140.58,2.844]
[1642546890118,2.845,140.63,140.58,3.094]
[1642546890322,2.845,140.63,140.58,13.7612]
[1642546893450,2.845,140.63,140.59,10.25]
[1642546893651,2.845,140.63,140.6,10.6651]
[1642546893850,2.845,140.63,140.61,6.06439994]
[1642546894552,2.845,140.63,140.62,0.25]
[1642546895452,2.845,140.63,140.62,10.9153]
[1642546897858,23.5677,140.7,140.62,13.7593]
[1642546898062,26.944,140.72,140.62,13.7593]
[1642546898460,6.0,140.71,140.62,15.23311605]
[1642546899258,2.844,140.72,140.62,15.23311605]
[1642546899456,28.77639301,140.74,140.62,33.05011605]
[1642546899656,28.77639301,140.74,140.66,10.661]
[1642546899858,28.77639301,140.74,140.66,20.911]
[1642546900058,4.04509301,140.74,140.67,0.25]
[1642546900258,1.20209301,140.74,140.67,13.342]
[1642546900465,1.20209301,140.74,140.67,10.5]
[1642546900658,1.20209301,140.74,140.68,13.5028]
[1642546900858,1.20209301,140.74,140.69,10.25]
[1642546901060,1.20209301,140.74,140.69,10.5]
[1642546901661,2.842,140.77,140.7,10.6581]
[1642546901861,26.7118,140.81,140.7,13.5001]
[1642546902160,26.7118,140.81,140.71,10.5]
[1642546902361,26.7118,140.81,140.72,2.841]
[1642546902564,26.7118,140.81,140.72,13.091]
[1642546902860,37.3687,140.81,140.73,10.9067]
[1642546903065,23.8698,140.81,140.73,10.9067]
[1642546903364,2.841,140.8,140.73,21.1567]
[1642546903561,3.71528835,140.87,140.73,21.1567]
[1642546903562,2.841,140.82,140.74,6.0]
[1642546903763,2.841,140.86,140.75,10.5]
[1642546903966,2.841,140.86,140.76,10.653]
[1642546904163,3.71528835,140.87,140.77,10.5]
[1642546904363,2.84,140.89,140.77,25.51503197]
[1642546904563,2.84,140.9,140.78,2.84]
[1642546904772,2.84,140.9,140.79,10.5]
[1642546904965,2.84,140.9,140.8,2.84]
[1642546905166,96.60094268,140.91,140.81,16.25]
[1642546905367,2.839,140.9,140.84,10.6485]
[1642546905570,92.88565433,140.91,140.84,16.9025]
[1642546905767,92.88565433,140.91,140.85,0.25]
[1642546906870,92.88565433,140.91,140.83,0.25]
[1642546907475,92.88565433,140.91,140.85,10.6478]
[1642546907671,2.839,140.92,140.86,0.25]
[1642546908074,23.0,140.91,140.85,10.3978]
[1642546908472,2.839,140.92,140.85,10.3978]
[1642546909273,2.839,140.92,140.86,0.25]
[1642546909675,0.25,140.91,140.82,13.4889]
[1642546909875,2.839,140.9,140.82,13.4889]
[1642546910275,0.25,140.89,140.82,13.4889]
[1642546910474,6.25,140.89,140.82,13.4889]
[1642546910679,2.839,140.88,140.81,10.25]
[1642546911074,2.839,140.88,140.82,0.25]
[1642546911876,13.4911,140.88,140.82,0.25]
[1642546912280,2.839,140.88,140.82,0.25]
[1642546912880,6.0,140.87,140.82,0.25]
[1642546914680,2.839,140.88,140.82,0.25]
[1642546916182,2.839,140.88,140.82,10.9002]
[1642546916383,13.4892,140.91,140.83,2.839]
[1642546916683,0.25,140.9,140.82,10.5]
[1642546916885,2.839,140.89,140.82,10.5]
[1642546917585,0.25,140.88,140.82,10.5]
[1642546918186,0.25,140.88,140.82,10.25]
[1642546918810,0.25,140.88,140.83,0.25]
[1642546919211,0.25,140.89,140.83,0.25]
[1642546920212,2.839,140.9,140.83,10.8997]
[1642546920417,2.839,140.92,140.84,2.839]
[1642546920614,74.2266,140.93,140.84,21.662]
[1642546920812,74.2266,140.93,140.85,0.25]
[1642546921012,74.2266,140.93,140.86,2.839]
[1642546921215,79.5567,140.96,140.87,0.25]
[1642546921416,2.838,140.97,140.87,21.1464]
[1642546921613,6.0,140.96,140.88,2.838]
[1642546921812,6.0,140.96,140.89,0.25]
[1642546922012,6.0,140.97,140.89,0.25]
[1642546923214,2.838,140.96,140.89,0.25]
[1642546923418,2.838,140.96,140.89,10.8948]
[1642546923717,6.0,140.95,140.89,10.8948]
[1642546924115,6.0,140.96,140.89,10.8948]
[1642546925516,4.37792565,140.99,140.9,6.0]
[1642546925719,4.37792565,140.99,140.92,10.6426]
[1642546925916,1.53992565,140.99,140.92,10.6426]
[1642546926118,1.53992565,140.99,140.93,0.25]
[1642546927318,1.53992565,140.99,140.92,0.25]
[1642546927517,1.53992565,140.99,140.94,10.641]
[1642546929819,2.837,141.0,140.94,10.641]
[1642546930023,2.837,141.0,140.96,10.6383]
[1642546930222,2.837,141.0,140.97,10.5]
[1642546930420,2.837,141.0,140.98,6.06439994]
[1642546930820,2.837,141.0,140.99,0.25]
[1642546931222,2.837,141.0,140.99,10.8874]
[1642546932823,2.836,141.05,140.99,10.8874]
[1642546933225,9.9637619,141.06,140.99,10.8874]
[1642546933427,6.0,141.05,140.99,10.8874]
[1642546935429,3.9637619,141.06,140.99,10.8874]
[1642546935430,3.9637619,141.06,140.99,21.1374]
[1642546935631,1.1277619,141.06,140.99,21.1374]
[1642546935832,1.98667241,141.08,140.99,21.1374]
[1642546936031,82.1373,141.09,140.99,21.1374]
[1642546936232,2.836,141.09,140.99,93.69121605]
[1642546936432,80.96247873,141.1,141.0,6.0]
[1642546936634,80.96247873,141.1,141.03,10.6313]
[1642546936832,80.96247873,141.1,141.04,10.25]
[1642546937035,80.96247873,141.1,141.04,10.5]
[1642546937262,1.98667241,141.1,141.04,10.5]
[1642546937465,1.33930665,141.13,141.05,1.47381605]
[1642546937666,1.33930665,141.13,141.06,10.25]
[1642546937864,1.33930665,141.13,141.06,10.5]
[1642546938069,1.33930665,141.13,141.07,1.47381605]
[1642546938266,1.33930665,141.13,141.08,0.25]
[1642546938764,2.834,141.12,141.08,0.25]
[1642546938966,8.834,141.12,141.09,10.0]
[1642546939167,2.834,141.12,141.1,6.06439994]
[1642546942067,1.33930665,141.13,141.1,6.06439994]
[1642546944270,0.25,141.12,141.1,6.06439994]
[1642546944473,19.717,141.12,141.05,10.25]
[1642546944670,19.467,141.12,141.05,10.25]
[1642546944874,0.25,141.11,141.05,10.25]
[1642546945074,2.835,141.1,141.05,10.25]
[1642546946074,2.835,141.1,141.06,1.47381605]
[1642546946275,2.835,141.12,141.06,1.47381605]
[1642546946476,2.835,141.12,141.05,10.25]
[1642546946675,2.835,141.12,141.06,0.25]
[1642546946876,2.835,141.12,141.05,10.25]
[1642546947480,0.25,141.11,141.05,10.25]
[1642546947677,2.835,141.1,141.05,10.25]
[1642546948980,0.25,141.11,141.05,10.25]
[1642546950282,2.835,141.12,141.05,10.25]
[1642546950482,1.33930665,141.13,141.06,0.25]
[1642546950683,1.33930665,141.13,141.06,10.5]
[1642546950882,1.33930665,141.13,141.07,1.47381605]
[1642546951181,1.33930665,141.13,141.08,0.25]
[1642546951586,1.33930665,141.13,141.08,10.8798]
[1642546953684,0.25,141.12,141.08,10.6298]
[1642546953885,2.834,141.12,141.08,10.6298]
[1642546954085,2.834,141.12,141.06,10.25]
[1642546954285,0.25,141.11,141.0,11.80101698]
[1642546954486,2.835,141.1,141.04,0.25]
[1642546955586,2.835,141.1,141.03,0.25]
[1642546955785,10.8837,141.11,141.03,0.25]
[1642546956486,10.8837,141.11,141.04,10.6337]
[1642546956686,2.835,141.1,141.05,0.25]
[1642546957786,2.835,141.1,141.05,10.8832]
[1642546958088,2.835,141.12,141.05,10.6332]
[1642546958388,16.79357906,141.13,141.06,0.25]
[1642546958686,14.80690665,141.13,141.06,0.25]
[1642546959289,14.80690665,141.13,141.05,0.25]
[1642546959489,14.80690665,141.13,141.06,10.6317]
[1642546959690,16.79357906,141.13,141.07,0.25]
[1642546959893,16.79357906,141.13,141.06,10.6317]
[1642546960091,6.0,141.12,141.06,10.6317]
[1642546960294,2.835,141.11,141.07,0.25]
[1642546960492,19.4678,141.12,141.07,0.25]
[1642546960692,21.45447241,141.12,141.06,10.6317]
[1642546962295,1.98667241,141.11,141.06,10.6317]
[1642546963621,1.98667241,141.11,141.07,0.25]
[1642546963824,1.98667241,141.11,141.07,10.8815]
[1642546964722,1.98667241,141.12,141.07,10.8815]
[1642546966323,1.33930665,141.13,141.07,10.8815]
[1642546966324,1.98667241,141.1,141.07,10.8815]
[1642546973429,6.06,141.09,141.07,10.8815]
[1642546973830,1.98667241,141.1,141.07,10.8815]
[1642546978135,1.98667241,141.09,141.07,10.8815]
[1642546980737,1.98667241,141.1,141.07,10.8815]
[1642546981738,1.98667241,141.09,141.07,10.8815]
[1642546982539,1.98667241,141.09,141.08,20.8788]
[1642546982739,1.98667241,141.09,141.08,27.1288]
[1642546983142,3.71528835,141.13,141.08,28.60261605]
[1642546983344,3.71528835,141.13,141.09,0.25]
[1642546983539,3.71528835,141.15,141.1,10.25]
[1642546983742,3.71528835,141.15,141.11,0.25]
[1642546983943,3.71528835,141.15,141.12,10.6265]
[1642546984544,2.834,141.17,141.12,10.6265]
[1642546984745,2.834,141.17,141.1,10.25]
[1642546985345,2.834,141.17,141.11,0.25]
[1642546986546,2.834,141.17,141.11,10.878]
[1642546987950,3.71528835,141.18,141.11,10.878]
[1642546988949,3.71528835,141.18,141.12,10.25]
[1642546989149,7.71739957,141.18,141.12,20.8774]
[1642546989352,7.71739957,141.18,141.13,0.25]
[1642546990473,2.833,141.17,141.13,0.25]
[1642546990876,2.833,141.18,141.13,0.25]
[1642546991074,3.083,141.18,141.13,0.25]
[1642546992076,2.833,141.18,141.13,0.25]
[1642546992276,2.833,141.18,141.13,10.8769]
[1642546992477,2.833,141.19,141.13,10.8769]
[1642546992677,23.6954,141.2,141.13,10.8769]
[1642546993178,23.6954,141.2,141.13,10.6269]
[1642546993978,2.833,141.19,141.13,10.6269]
[1642546994679,2.833,141.19,141.14,10.8764]
[1642546994879,2.833,141.19,141.14,10.6264]
[1642546995079,26.5284,141.2,141.14,10.6264]
[1642546995479,26.5284,141.2,141.15,0.25]
[1642546995680,23.6954,141.2,141.15,0.25]
[1642547000686,23.6954,141.2,141.14,10.6264]
[1642547001890,26.5284,141.2,141.14,10.6264]
[1642547002291,0.25,141.19,141.12,20.8772]
[1642547002488,2.833,141.18,141.1,10.25]
[1642547002689,0.25,141.17,141.1,10.25]
[1642547002890,2.834,141.16,141.06,10.25]
[1642547003090,2.834,141.16,141.07,0.25]
[1642547003491,6.25,141.15,141.07,0.25]
[1642547004592,16.8809,141.15,141.07,10.8809]
[1642547011301,39.8771,141.15,141.07,10.8809]
[1642547011495,40.9685314,141.15,141.07,10.8809]
[1642547011798,39.8771,141.15,141.07,10.8809]
[1642547013698,39.8771,141.15,141.07,21.1309]
[1642547015499,39.8771,141.15,141.07,10.5]
[1642547018401,2.834,141.14,141.07,10.5]
[1642547018602,2.834,141.14,141.07,10.25]
[1642547018603,16.6321,141.13,141.07,10.25]
[1642547018800,16.8821,141.13,141.07,10.25]
[1642547019202,16.8821,141.13,141.08,0.25]
[1642547020303,16.8821,141.13,141.07,0.25]
[1642547021305,16.6321,141.13,141.07,0.25]
[1642547021504,16.6321,141.13,141.07,10.8818]
[1642547021705,16.6321,141.13,141.08,0.25]
[1642547023533,6.0,141.13,141.08,0.25]
[1642547023732,6.0,141.13,141.08,10.881]
[1642547023933,6.0,141.14,141.08,20.881]
[1642547024134,33.6274,141.15,141.08,20.881]
[1642547024333,9.084,141.14,141.08,10.25]
[1642547024534,9.084,141.14,141.07,10.25]
[1642547024840,19.7161,141.14,141.08,0.25]
[1642547025735,90.5361,141.14,141.08,0.25]
[1642547025935,90.5361,141.14,141.07,0.25]
[1642547026234,90.5361,141.14,141.06,10.6326]
[1642547026435,90.5361,141.14,141.04,10.6334]
[1642547026634,90.5361,141.14,141.0,10.25]
[1642547026836,90.5361,141.14,141.01,10.0]
[1642547027035,10.6391,141.08,140.97,4.00144864]
[1642547027337,98.6215,141.07,140.97,4.00144864]
[1642547027534,137.2503,141.07,140.97,4.00144864]
[1642547027734,2.836,141.06,140.97,4.00144864]
[1642547027937,2.836,141.06,140.96,10.64]
[1642547028134,10.6395,141.04,140.96,10.64]
[1642547028334,13.4755,141.04,140.97,0.25]
[1642547028538,6.25,141.03,140.94,10.25]
[1642547028746,29.2474,141.03,140.95,10.6407]
[1642547029336,81.4605,141.02,140.94,10.25]
[1642547029536,76.82,141.01,140.9,15.7952434]
[1642547029737,112.5504,141.01,140.91,10.6432]
[1642547029938,2.837,141.0,140.9,4.00144864]
[1642547030238,6.25,140.99,140.9,4.00144864]
[1642547030436,6.25,140.99,140.88,10.25]
[1642547030437,70.82,140.97,140.88,10.25]
[1642547030636,6.0,140.96,140.88,10.25]
[1642547031437,6.0,140.96,140.88,20.8959]
[1642547031636,35.7363,140.99,140.88,20.8959]
[1642547031637,6.0,140.97,140.88,20.8959]
[1642547031839,6.0,140.97,140.89,2.838]
[1642547032038,6.0,140.98,140.89,13.088]
[1642547032236,6.0,140.98,140.89,10.25]
[1642547032441,6.0,140.98,140.9,2.838]
[1642547032638,6.0,140.99,140.9,3.088]
[1642547033438,0.25,140.98,140.91,10.6433]
[1642547033640,3.087,140.98,140.89,10.25]
[1642547033839,73.907,140.98,140.88,2.838]
[1642547034038,70.82,140.96,140.88,2.838]
[1642547034238,3.088,140.95,140.85,10.25]
[1642547034440,79.908,140.95,140.85,10.25]
[1642547035438,10.6467,140.94,140.87,10.6462]
[1642547035641,6.0,140.93,140.87,10.6462]
[1642547035840,6.25,140.93,140.87,10.6462]
[1642547036040,6.0,140.93,140.87,10.6462]
[1642547036239,8.838,140.94,140.85,10.25]
[1642547036640,0.25,140.93,140.85,10.25]
[1642547036841,6.0,140.94,140.86,10.6474]
[1642547037040,6.0,140.97,140.87,2.838]
[1642547037241,0.25,140.93,140.84,10.25]
[1642547037644,6.0,140.95,140.85,0.25]
[1642547037842,10.6465,140.94,140.87,10.6464]
[1642547038043,6.0,140.93,140.87,10.6464]
[1642547038242,6.0,140.93,140.88,0.25]
[1642547038943,6.0,140.95,140.88,0.25]
[1642547039142,6.0,140.95,140.89,10.6438]
[1642547039744,2.838,140.96,140.89,10.6438]
[1642547040150,22.5434,140.97,140.91,10.6435]
[1642547040348,2.838,140.99,140.9,0.25]
[1642547040546,0.25,140.96,140.9,0.25]
[1642547041246,10.895,140.96,140.89,10.895]
[1642547041448,9.088,140.96,140.89,10.5]
[1642547041648,6.25,140.96,140.89,10.5]
[1642547042047,0.25,140.96,140.89,10.5]
[1642547042280,0.25,140.98,140.89,10.5]
[1642547042449,2.838,140.97,140.9,10.644]
[1642547042651,2.838,140.97,140.9,20.894]
[1642547042852,0.25,140.96,140.9,20.894]
[1642547045051,6.25,140.96,140.9,20.894]
[1642547045652,0.25,140.96,140.9,20.894]
[1642547045852,0.25,140.96,140.9,10.25]
[1642547046059,2.838,140.95,140.9,10.25]
[1642547046253,0.25,140.94,140.9,10.25]
[1642547046452,2.838,140.96,140.9,10.25]
[1642547046653,6.0,140.95,140.87,2.838]
[1642547046853,6.25,140.95,140.87,10.25]
[1642547047254,10.8958,140.95,140.88,13.7336]
[1642547047453,6.0,140.94,140.88,13.7336]
[1642547047654,6.0,140.94,140.88,10.8956]
[1642547047856,10.8958,140.95,140.88,10.8956]
[1642547048555,6.0,140.94,140.88,10.8956]
[1642547050362,6.0,140.96,140.88,10.8956]
[1642547050562,6.0,140.96,140.9,10.6441]
[1642547051662,16.645,140.96,140.9,10.6441]
[1642547051960,10.645,140.96,140.9,10.6441]
[1642547052761,19.4822,140.97,140.9,10.6441]
[1642547052964,16.6442,140.97,140.9,10.6441]
[1642547053164,0.25,140.96,140.9,10.6441]
[1642547057366,0.25,140.96,140.91,10.25]
[1642547058666,0.25,140.96,140.9,10.6441]
[1642547059065,19.4822,140.97,140.91,20.8935]
[1642547059265,6.0,140.97,140.92,0.25]
[1642547059466,6.0,140.97,140.93,10.25]
[1642547059867,6.0,140.98,140.93,10.25]
[1642547060167,6.0,140.99,140.93,10.25]
[1642547060568,47.1297,141.01,140.93,10.25]
[1642547060769,0.25,141.0,140.93,10.25]
[1642547060976,9.087,141.0,140.93,10.25]
[1642547061568,19.7295,141.0,140.93,20.8922]
[1642547064475,19.7295,141.0,140.93,10.25]
[1642547066103,19.7295,141.0,140.93,20.8922]
[1642547066704,2.837,141.0,140.94,0.25]
[1642547066903,2.837,141.0,140.95,10.25]
[1642547067108,2.837,141.0,140.96,16.6378]
[1642547067303,2.837,141.0,140.97,10.25]
[1642547067503,2.837,141.0,140.97,13.087]
[1642547067704,2.837,141.0,140.98,0.25]
[1642547068103,2.837,141.0,140.99,10.25]
[1642547069606,1.48897037,141.06,140.99,23.9739]
[1642547069807,1.48897037,141.06,141.0,0.25]
[1642547070007,1.48897037,141.06,140.99,20.8879]
[1642547070412,12.12657037,141.06,140.99,20.8879]
[1642547070808,0.25,141.05,140.99,20.8879]
[1642547071710,16.8884,141.05,140.99,10.25]
[1642547072108,2.836,141.04,140.99,10.25]
[1642547072310,0.25,141.03,140.99,10.25]
[1642547072511,2.836,141.04,140.99,10.25]
[1642547072512,9.086,141.05,140.99,10.25]
[1642547073413,10.6396,141.04,140.99,10.25]
[1642547075912,0.25,141.03,140.99,10.25]
[1642547076112,3.086,141.03,140.99,10.25]
[1642547077220,2.836,141.03,140.99,10.25]
[1642547077415,13.4756,141.04,140.99,10.25]
[1642547077615,13.4756,141.04,140.97,10.6387]
[1642547078016,10.89,141.03,140.98,10.25]
[1642547085947,10.89,141.03,140.95,10.25]
[1642547086151,10.6412,141.01,140.95,10.25]
[1642547088349,13.7295,141.0,140.95,10.25]
[1642547088551,10.8925,141.0,140.95,10.25]
[1642547089251,10.6425,141.0,140.95,10.25]
[1642547089851,16.6413,141.02,140.95,10.25]
[1642547090054,2.837,141.01,140.95,10.25]
[1642547090252,16.6413,141.02,140.95,10.25]
[1642547090852,0.25,141.01,140.95,10.25]
[1642547091051,3.087,141.01,140.95,10.25]
[1642547091254,13.7287,141.01,140.95,10.25]
[1642547091454,6.0,141.0,140.95,10.25]
[1642547091756,0.25,140.99,140.95,10.25]
[1642547091954,3.087,140.99,140.95,10.25]
[1642547092558,13.7298,140.99,140.95,10.25]
[1642547092956,13.7298,140.99,140.93,2.837]
[1642547093159,13.7298,140.99,140.92,10.6431]
[1642547094457,10.8928,140.99,140.93,10.25]
[1642547097860,10.8928,140.99,140.93,20.8923]
[1642547099761,6.0,141.0,140.94,0.25]
[1642547099962,27.6263,141.01,140.95,10.25]
[1642547100165,39.18558835,141.05,140.96,0.25]
[1642547100166,2.837,141.04,140.96,0.25]
[1642547100362,65.79138835,141.05,140.97,2.836]
[1642547100562,6.0,141.04,140.97,2.836]
[1642547100862,6.25,141.04,140.97,2.836]
[1642547101462,10.6407,141.03,140.97,2.836]
[1642547101863,0.25,141.02,140.96,10.25]
[1642547102263,13.4767,141.03,140.97,0.25]
[1642547102465,10.6407,141.03,140.97,0.25]
[1642547103164,10.6407,141.03,140.96,10.25]
[1642547103767,10.6407,141.03,140.97,0.25]
[1642547104767,0.25,141.02,140.96,10.25]
[1642547104967,16.641,141.02,140.96,10.25]
[1642547105370,10.641,141.02,140.96,10.25]
[1642547110201,0.25,141.01,140.96,10.25]
[1642547110900,4.76377228,141.04,140.96,20.8901]
[1642547110901,15.40387228,141.04,140.96,20.8901]
[1642547111102,6.0,141.03,140.97,3.087]
[1642547111402,6.0,141.03,140.97,13.087]
[1642547111802,6.0,141.04,140.97,10.25]
[1642547112102,2.836,141.03,140.97,10.25]
[1642547112303,0.25,141.03,140.97,10.25]
[1642547112503,81.7103,141.03,140.97,10.25]
[1642547112703,2.836,141.02,140.97,10.25]
[1642547113002,2.836,141.02,140.93,16.56647655]
[1642547113205,6.25,141.01,140.93,12.25446427]
[1642547113503,6.25,141.01,140.93,10.25]
[1642547113504,13.48,141.0,140.93,10.25]
[1642547113704,0.25,140.99,140.93,10.25]
[1642547114501,6.25,140.99,140.93,10.25]
[1642547115504,16.8932,140.99,140.93,10.25]
[1642547115707,2.837,140.98,140.93,10.25]
[1642547116106,0.25,140.97,140.93,10.25]
[1642547118412,3.087,140.97,140.93,10.25]
[1642547118613,13.7317,140.97,140.93,10.25]
[1642547118816,13.7317,140.97,140.89,29.12126427]
[1642547119016,6.0,140.96,140.9,10.25]
[1642547119215,0.25,140.95,140.9,10.5]
[1642547119616,10.8967,140.95,140.89,2.837]
[1642547119816,2.838,140.94,140.88,2.00446427]
[1642547120015,70.82,140.93,140.88,2.00446427]
[1642547120216,2.838,140.92,140.88,2.00446427]
[1642547120416,2.838,140.92,140.84,15.09246427]
[1642547120617,2.838,140.92,140.84,12.25446427]
[1642547120618,6.25,140.91,140.84,12.25446427]
[1642547120824,16.9007,140.91,140.84,2.00446427]
[1642547121419,16.9007,140.91,140.82,4.84346427]
[1642547121618,2.839,140.9,140.82,4.84346427]
[1642547121818,10.652,140.88,140.82,4.84346427]
[1642547122018,13.491,140.88,140.82,4.84346427]
[1642547122219,0.25,140.87,140.82,4.84346427]
[1642547122419,0.25,140.87,140.82,2.839]
[1642547123521,0.25,140.87,140.81,15.09446427]
[1642547124522,6.25,140.87,140.81,15.09446427]
[1642547124921,6.25,140.87,140.81,12.25446427]
[1642547125322,6.25,140.87,140.81,10.25]
[1642547125721,0.25,140.87,140.81,10.25]
[1642547126122,19.7424,140.87,140.81,12.25446427]
[1642547126322,3.09,140.89,140.82,0.25]
[1642547126524,0.25,140.89,140.82,3.089]
[1642547126727,0.25,140.89,140.82,4.56501228]
[1642547126924,0.25,140.89,140.83,10.25]
[1642547127125,0.25,140.89,140.84,2.839]
[1642547128527,0.25,140.89,140.83,13.089]
[1642547128724,34.1845,140.9,140.84,0.25]
[1642547129023,34.1845,140.9,140.84,3.089]
[1642547129225,0.25,140.89,140.84,2.839]
[1642547130525,16.9011,140.89,140.81,13.4898]
[1642547130725,19.7411,140.89,140.81,10.25]
[1642547142838,19.7411,140.89,140.77,12.25446427]
[1642547143035,19.7411,140.89,140.77,10.25]
[1642547143664,29.9911,140.89,140.76,4.84346427]
[1642547143863,29.9911,140.89,140.76,2.00446427]
[1642547144664,29.9911,140.89,140.74,12.25446427]
[1642547145765,1.33480384,140.85,140.74,10.25]
[1642547145964,10.6592,140.82,140.74,10.25]
[1642547146164,10.6592,140.82,140.71,23.33471082]
[1642547146165,3.091,140.81,140.71,23.33471082]
[1642547146364,31.7075,140.81,140.71,12.25446427]
[1642547146565,38.7305,140.81,140.71,2.00446427]
[1642547146966,38.7305,140.81,140.72,2.00446427]
[1642547147567,10.66,140.79,140.72,2.00446427]
[1642547147866,13.501,140.79,140.72,2.00446427]
[1642547148067,6.0,140.81,140.7,2.841]
[1642547148272,6.0,140.81,140.73,1.47601228]
[1642547148468,6.0,140.81,140.74,2.841]
[1642547148667,6.0,140.83,140.74,3.091]
[1642547148868,19.4967,140.83,140.74,13.4977]
[1642547149071,19.4967,140.83,140.74,2.841]
[1642547149271,19.4967,140.83,140.72,2.00446427]
[1642547149473,22.5667,140.82,140.72,2.00446427]
[1642547149671,73.661,140.81,140.72,2.00446427]
[1642547149878,79.661,140.81,140.72,2.00446427]
[1642547150071,0.25,140.8,140.71,10.25]
[1642547150374,2.841,140.79,140.71,10.25]
[1642547150572,6.0,140.78,140.71,10.25]
[1642547150773,6.25,140.78,140.71,10.25]
[1642547151191,6.0,140.78,140.72,3.092]
[1642547151391,2.842,140.84,140.72,14.81801228]
[1642547151694,1.33480384,140.85,140.73,12.13311228]
[1642547151889,1.92677228,140.87,140.74,10.25]
[1642547152089,1.92677228,140.87,140.75,6.0]
[1642547152289,1.92677228,140.87,140.76,10.5]
[1642547152492,1.92677228,140.87,140.77,10.6525]
[1642547152790,81.33478542,140.9,140.78,10.5]
[1642547152988,81.33478542,140.9,140.78,11.97594389]
[1642547153190,81.33478542,140.9,140.79,7.47594389]
[1642547153389,6.0,140.89,140.8,10.25]
[1642547153591,6.25,140.89,140.83,10.6494]
[1642547153789,6.25,140.89,140.84,0.25]
[1642547155491,6.25,140.89,140.83,10.6494]